bitfinex-derivatives/quotes_ETHF0:USTF0_20240928
["timestamp","ask_amount","ask_price","bid_price","bid_amount"]
[1727560980365,2.32654288,2675.8,2675.4,3.68087]
[1727560980558,0.37364,2675.7,2675.4,0.37368]
[1727560980762,0.37364,2675.7,2675.3,0.76458]
[1727560980763,3.97525,2675.6,2675.3,0.76458]
[1727560981059,3.97525,2675.6,2675.3,0.3909]
[1727560981060,0.37367,2675.5,2675.3,0.3909]
[1727560981258,0.37368,2675.4,2675.3,0.3909]
[1727560981461,0.37368,2675.4,2675.2,2.92]
[1727560981658,1.95292288,2675.5,2675.2,2.92]
[1727560981659,1.95292288,2675.5,2675.2,0.3737]
[1727560981860,1.95292288,2675.5,2675.3,4.11921036]
[1727560982056,5.55452288,2675.6,2675.3,4.11921036]
[1727560982361,5.92818288,2675.6,2675.3,4.11921036]
[1727560982565,5.92818288,2675.6,2675.3,4.49290036]
[1727560982960,0.37367,2675.5,2675.3,4.11921036]
[1727560983158,5.92818288,2675.6,2675.3,4.11921036]
[1727560983559,5.92818288,2675.6,2675.3,4.49290036]
[1727560983759,3.97526,2675.6,2675.3,4.49290036]
[1727560984568,3.2078,2675.6,2675.5,3.29366]
[1727560984867,3.2078,2675.6,2675.5,7.26087713]
[1727560985268,3.2078,2675.6,2675.5,7.63757713]
[1727560987065,3.2078,2675.6,2675.5,11.37517713]
[1727560987568,3.2078,2675.6,2675.5,11.75267713]
[1727560989273,3.2078,2675.6,2675.5,12.62767713]
[1727560991768,3.5827,2676.1,2675.9,0.3736]
[1727560992075,3.95628,2676.1,2676.0,3.9967345]
[1727560992469,4.89024,2676.1,2676.0,3.9967345]
[1727560992666,4.89024,2676.1,2675.5,0.3767]
[1727560992667,13.3195,2676.1,2675.5,0.3767]
[1727560992970,0.37364,2675.7,2675.5,0.37365]
[1727560993174,6.09387403,2675.8,2675.4,2.92]
[1727560993375,3.58146,2675.5,2675.4,2.92]
[1727560994478,3.2078,2675.5,2675.4,3.29368]
[1727560994779,3.45517403,2675.6,2675.4,3.29368]
[1727560994978,1.50316,2675.6,2675.4,3.29368]
[1727560995878,1.50316,2675.6,2675.4,2.92]
[1727560996177,1.50316,2675.6,2675.4,3.29367]
[1727560996377,1.95201403,2675.7,2675.6,0.37365]
[1727560996685,0.37361,2675.9,2675.7,0.37363]
[1727560996879,3.08871403,2676.0,2675.8,0.37362]
[1727560997084,3.08871403,2676.0,2675.9,2.92]
[1727560997379,2.71511403,2676.0,2675.9,3.29361]
[1727560997576,2.71511403,2676.0,2675.9,2.92]
[1727560997978,0.37369,2675.4,2674.8,0.875]
[1727560998175,0.37369,2675.4,2675.1,0.37371]
[1727560998176,0.7823,2675.3,2675.1,0.37371]
[1727560998377,1.156,2675.3,2675.1,4.46773595]
[1727560998577,0.37371,2675.2,2675.0,0.37372]
[1727560998779,0.7823,2675.3,2674.9,2.92]
[1727560998981,2.33648891,2675.1,2674.7,2.92]
[1727560999171,0.37376,2674.8,2674.7,2.92]
[1727560999578,0.7588,2674.8,2674.7,3.29378]
[1727561002176,0.3842,2675.1,2674.7,10.64176509]
[1727561002381,0.7596,2675.1,2675.0,3.29373]
[1727561003882,0.74912,2675.1,2674.8,2.92]
[1727561004079,0.74912,2675.1,2674.8,3.29375]
[1727561004274,0.74912,2675.1,2674.9,3.90739973]
[1727561004475,0.74912,2675.1,2674.9,0.37374]
[1727561004675,0.3754,2675.1,2675.0,0.37373]
[1727561006083,0.74912,2675.1,2674.9,0.37374]
[1727561007079,0.74912,2675.1,2675.0,0.37373]
[1727561007080,0.3754,2675.1,2675.0,0.37373]
[1727561007276,0.3754,2675.1,2674.9,0.37374]
[1727561007277,0.74913,2675.1,2674.9,0.37374]
[1727561008082,0.3754,2675.1,2675.0,0.37373]
[1727561009281,0.3807,2675.3,2675.2,0.37371]
[1727561010888,0.3807,2675.3,2675.1,3.29371]
[1727561010889,0.7544,2675.3,2675.1,3.29371]
[1727561011286,0.7544,2675.3,2675.2,4.03999859]
[1727561011588,0.3807,2675.3,2675.2,4.41370859]
[1727561012090,0.75439,2675.3,2675.2,4.03999859]
[1727561014585,0.37371,2675.2,2675.0,0.37373]
[1727561014786,0.4035,2675.1,2675.0,0.37373]
[1727561015692,0.4035,2675.1,2674.8,0.37375]
[1727561015693,0.37374,2675.0,2674.8,0.37375]
[1727561015995,0.74554,2675.0,2674.8,0.37375]
[1727561017188,0.74554,2675.0,2674.9,0.37375]
[1727561017189,0.3718,2675.0,2674.9,0.37375]
[1727561018593,3.2078,2675.2,2675.1,0.37372]
[1727561018792,3.58151,2675.2,2675.0,0.37372]
[1727561018998,3.2078,2675.2,2675.0,0.37372]
[1727561019293,0.37373,2675.0,2674.8,0.37376]
[1727561019690,0.37373,2675.0,2674.8,4.45923068]
[1727561019890,0.37373,2675.0,2674.8,0.37376]
[1727561020199,0.37373,2675.1,2674.9,0.37375]
[1727561020498,5.53379891,2675.2,2675.0,0.37373]
[1727561022793,6.02187114,2675.2,2675.0,0.37373]
[1727561022994,6.02187114,2675.2,2674.9,0.4085]
[1727561022995,0.37373,2675.0,2674.9,0.4085]
[1727561023195,0.37377,2674.8,2674.6,0.37378]
[1727561023501,5.64816114,2675.2,2674.5,2.0918]
[1727561023502,1.95634275,2674.7,2674.5,2.0918]
[1727561023703,1.95634275,2674.7,2674.6,0.37378]
[1727561023998,1.95634275,2674.7,2674.6,4.68143201]
[1727561026401,0.37381,2674.5,2674.2,0.76314]
[1727561026600,2.3304925,2674.5,2674.2,0.76314]
[1727561026904,1.95662166,2674.6,2674.4,2.92]
[1727561027098,1.95662166,2674.7,2674.4,3.29381]
[1727561027299,0.37379,2674.6,2674.5,4.15471748]
[1727561027502,0.37379,2674.6,2674.3,0.37383]
[1727561027694,1.95637825,2674.5,2674.4,4.11252905]
[1727561027895,1.95637825,2674.5,2674.3,0.37383]
[1727561028294,1.95637825,2674.5,2674.4,4.11252905]
[1727561028596,2.35497825,2674.5,2674.4,4.11252905]
[1727561028799,0.3986,2674.5,2674.4,4.48634905]
[1727561029497,0.3986,2674.5,2674.4,4.11252905]
[1727561029805,0.37382,2674.4,2674.1,1.14525]
[1727561030006,0.3987,2674.3,2674.1,1.14525]
[1727561030204,0.3987,2674.3,2674.2,3.98271395]
[1727561030498,3.98033,2674.3,2674.0,4.69773828]
[1727561030801,0.37385,2674.2,2674.1,4.01462346]
[1727561031194,4.11305,2674.2,2674.1,4.01462346]
[1727561031506,4.11305,2674.2,2673.6,0.908]
[1727561031507,5.69501127,2674.2,2673.6,0.908]
[1727561031711,3.2078,2674.0,2673.8,0.3739]
[1727561032001,1.95581127,2674.2,2674.0,0.37387]
[1727561032197,0.37385,2674.2,2673.9,0.37388]
[1727561032603,0.37385,2674.2,2674.0,0.37387]
[1727561032805,5.93615127,2674.3,2674.0,0.37387]
[1727561033106,0.37385,2674.2,2674.0,0.37387]
[1727561033300,0.37387,2674.1,2673.9,0.37388]
[1727561033704,0.3792,2674.0,2673.9,0.37388]
[1727561035193,0.37386,2674.2,2674.0,0.37386]
[1727561035499,0.74696,2674.2,2674.0,0.37386]
[1727561036604,0.3731,2674.2,2673.9,0.37388]
[1727561036903,0.37387,2674.1,2673.9,0.37388]
[1727561037107,3.2078,2674.0,2673.6,4.4787987]
[1727561037405,0.37389,2673.9,2673.8,0.37389]
[1727561038201,0.75729,2673.9,2673.7,0.37391]
[1727561038410,0.3938,2673.8,2673.7,0.37391]
[1727561038600,0.76771,2673.8,2673.6,4.8527187]
[1727561039209,0.3938,2673.8,2673.6,4.4787987]
[1727561039603,3.2078,2674.0,2673.6,4.4787987]
[1727561039810,3.2078,2674.0,2673.7,0.37391]
[1727561039811,0.37389,2673.9,2673.7,0.37391]
[1727561040111,3.58168,2674.0,2673.7,0.37391]
[1727561040307,3.58168,2674.0,2673.8,0.3739]
[1727561040706,3.2078,2674.0,2673.9,0.37389]
[1727561041002,6.213,2674.3,2673.9,0.37389]
[1727561041003,3.2078,2674.3,2673.9,3.9662977]
[1727561041208,3.2078,2674.3,2674.1,0.37386]
[1727561041403,3.2078,2674.3,2674.2,0.78015]
[1727561041598,1.95581127,2674.7,2674.2,3.3263]
[1727561041797,0.3738,2674.6,2674.3,0.37383]
[1727561042011,0.37382,2674.4,2674.2,0.78014]
[1727561042513,3.58161,2674.5,2674.3,4.10311398]
[1727561042714,3.58161,2674.5,2674.3,4.47694398]
[1727561043905,3.2078,2674.5,2674.4,0.37382]
[1727561044112,0.37379,2674.7,2674.4,0.37381]
[1727561044309,0.37379,2674.7,2674.3,4.10311398]
[1727561044612,0.37378,2674.7,2674.5,0.3738]
[1727561045605,0.37379,2674.6,2674.5,0.3738]
[1727561046608,0.37379,2674.6,2674.4,0.37381]
[1727561046804,3.5844,2674.8,2674.3,4.10311398]
[1727561047104,3.5844,2674.8,2674.2,0.78013]
[1727561047105,0.37383,2674.3,2674.2,0.78013]
[1727561047506,0.37383,2674.3,2674.1,0.37386]
[1727561047507,0.37384,2674.3,2674.1,0.37386]
[1727561047812,0.37385,2674.2,2674.1,0.37386]
[1727561048320,0.37384,2674.3,2674.1,0.37386]
[1727561048514,0.37384,2674.3,2674.0,1.16277]
[1727561048812,0.37384,2674.3,2674.1,0.37385]
[1727561050308,1.14093,2674.4,2674.1,0.37385]
[1727561050919,0.37383,2674.3,2674.1,0.37385]
[1727561051621,3.58166,2674.2,2674.0,0.4064]
[1727561051814,3.58166,2674.2,2673.9,0.77978]
[1727561052118,3.58166,2674.2,2674.0,4.34278826]
[1727561052518,0.37386,2674.2,2674.0,4.34278826]
[1727561052715,0.37384,2674.3,2674.1,0.37386]
[1727561053422,0.37386,2674.1,2674.0,3.96891826]
[1727561053612,0.37386,2674.1,2673.5,1.2995]
[1727561053613,0.37389,2673.9,2673.5,1.2995]
[1727561053813,0.93466,2674.1,2673.5,1.2995]
[1727561053814,0.3739,2673.8,2673.6,0.37392]
[1727561054009,0.3908,2674.0,2673.7,0.37391]
[1727561054010,0.37389,2673.9,2673.7,0.37391]
[1727561054215,0.3739,2673.8,2673.6,0.37392]
[1727561055415,0.3739,2673.8,2673.7,0.37391]
[1727561057618,0.75339,2673.9,2673.7,0.37391]
[1727561057916,0.3795,2673.9,2673.8,0.3739]
[1727561060316,0.75339,2673.9,2673.8,0.3739]
[1727561060516,0.75339,2673.9,2673.7,0.37391]
[1727561060920,0.3739,2673.8,2673.6,0.37392]
[1727561061119,0.37391,2673.7,2673.6,0.37392]
[1727561061319,0.37393,2673.6,2673.5,4.29200902]
[1727561061523,0.37397,2673.3,2673.2,0.77768]
[1727561061719,0.37397,2673.4,2673.3,0.37397]
[1727561061926,0.37397,2673.4,2673.2,0.77768]
[1727561063325,0.37397,2673.3,2673.2,0.4037]
[1727561064127,0.37397,2673.3,2673.0,0.8047]
[1727561064128,0.374,2673.1,2673.0,0.4006]
[1727561064338,0.37402,2673.0,2672.7,0.37405]
[1727561064527,3.2078,2672.9,2672.5,0.3869]
[1727561064736,0.3974,2672.9,2672.7,0.37405]
[1727561064936,0.3974,2672.9,2672.6,4.5153206]
[1727561065136,0.3974,2672.9,2672.6,4.1412606]
[1727561065332,0.77143,2672.9,2672.6,4.1412606]
[1727561065537,3.97923,2672.9,2672.6,4.5153306]
[1727561066728,0.77143,2672.9,2672.6,4.5153306]
[1727561066932,3.6052,2672.9,2672.7,0.37405]
[1727561067542,3.97924,2672.9,2672.6,4.5153306]
[1727561068641,6.89924,2672.9,2672.6,4.5153306]
[1727561068842,3.69144,2672.9,2672.6,4.5153306]
[1727561069044,3.3174,2672.9,2672.7,0.37405]
[1727561069551,3.69143,2672.9,2672.6,4.5153206]
[1727561069744,3.3174,2672.9,2672.7,0.37405]
[1727561070841,3.3174,2672.9,2672.6,4.1412606]
[1727561070842,0.37405,2672.7,2672.6,4.1412606]
[1727561071040,6.1278,2672.7,2672.2,0.37412]
[1727561071242,6.1278,2672.7,2671.7,0.18484347]
[1727561071243,0.8013,2672.6,2672.5,0.37408]
[1727561071440,0.8013,2672.6,2672.3,3.93517083]
[1727561071441,0.401,2672.6,2672.3,3.93517083]
[1727561071633,0.77508,2672.6,2672.3,0.3741]
[1727561071855,0.37411,2672.4,2672.1,4.34093743]
[1727561072035,0.37411,2672.4,2672.1,0.37413]
[1727561072231,0.3694,2672.3,2672.1,0.37413]
[1727561072435,0.3694,2672.3,2672.2,3.96680743]
[1727561072841,0.3694,2672.3,2672.0,0.3839]
[1727561073046,0.77513,2672.2,2672.0,0.3839]
[1727561073249,0.77513,2672.2,2671.4,2.92]
[1727561073250,0.401,2672.2,2671.4,2.92]
[1727561073547,0.37415,2672.1,2671.8,4.29903219]
[1727561073744,3.58195,2672.1,2671.8,4.67321219]
[1727561073939,3.58195,2672.1,2671.8,0.37418]
[1727561074139,0.37415,2672.0,2671.9,4.29903219]
[1727561074546,0.37415,2672.0,2671.8,0.37418]
[1727561074748,3.2078,2672.1,2671.9,0.37417]
[1727561074936,3.58194,2672.1,2671.8,4.48769965]
[1727561075242,2.92,2671.9,2671.5,0.3905]
[1727561075543,2.92,2671.7,2671.5,0.76471]
[1727561075739,2.92,2671.7,2671.6,0.37421]
[1727561077550,3.599,2671.8,2671.7,0.37419]
[1727561077741,3.2078,2671.8,2671.7,0.37419]
[1727561082947,0.3781,2672.1,2671.8,0.37417]
[1727561082948,0.75224,2672.1,2671.8,0.37417]
[1727561083636,2.92,2671.9,2671.7,0.37419]
[1727561084048,0.3862,2671.8,2671.7,0.37419]
[1727561085150,0.76039,2671.8,2671.5,0.76472]
[1727561085454,0.76038,2671.8,2671.5,0.76471]
[1727561085950,0.3862,2671.8,2671.6,0.37421]
[1727561086143,0.76039,2671.8,2671.6,0.37421]
[1727561086848,0.37416,2672.0,2671.7,0.37419]
[1727561087050,0.37419,2671.8,2671.6,0.3742]
[1727561087351,0.37418,2671.8,2671.6,0.37421]
[1727561088247,10.35223,2671.9,2670.8,3.007]
[1727561088445,2.92,2671.3,2671.2,0.37426]
[1727561089948,3.317,2671.5,2671.0,0.7626]
[1727561090151,3.317,2671.5,2671.4,0.37424]
[1727561090348,3.69122,2671.5,2671.3,0.37424]
[1727561090550,3.69122,2671.5,2671.1,4.00282789]
[1727561090551,3.317,2671.5,2671.4,0.37424]
[1727561091252,3.317,2671.5,2671.1,4.00282789]
[1727561091454,3.69122,2671.5,2671.3,0.37424]
[1727561092558,3.69122,2671.5,2671.4,0.37424]
[1727561092559,3.317,2671.5,2671.4,0.37424]
[1727561092761,3.69122,2671.5,2671.4,0.37424]
[1727561093061,3.317,2671.5,2671.4,0.37424]
[1727561094248,3.69123,2671.5,2671.3,0.37424]
[1727561094843,3.317,2671.5,2671.3,0.37424]
[1727561095047,3.69124,2671.5,2671.3,0.37424]
[1727561095951,3.317,2671.5,2671.1,4.00282789]
[1727561096154,3.317,2671.5,2671.4,0.37424]
[1727561096857,2.92,2671.5,2671.4,0.37424]
[1727561098059,2.92,2671.7,2671.4,0.37424]
[1727561098256,2.92,2671.7,2671.5,0.4067]
[1727561098451,2.92,2671.7,2671.6,0.3742]
[1727561100653,6.1278,2671.9,2671.5,1.1721]
[1727561100959,6.50198,2671.9,2671.7,0.37419]
[1727561101154,0.37418,2671.8,2671.7,0.37419]
[1727561101353,6.50198,2671.9,2671.7,0.37419]
[1727561101953,6.1278,2671.9,2671.6,4.25612598]
[1727561102160,2.92,2671.7,2671.6,0.37421]
[1727561102358,6.50198,2671.9,2671.7,0.37419]
[1727561102760,6.1278,2671.9,2671.7,0.37419]
[1727561103066,3.2078,2671.9,2671.8,0.37418]
[1727561104859,3.2078,2671.9,2671.7,0.37419]
[1727561105065,3.2078,2671.9,2671.8,0.37418]
[1727561105066,6.50197,2671.9,2671.8,0.37418]
[1727561105358,6.1278,2671.9,2671.8,0.37418]
[1727561106551,6.50197,2671.9,2671.8,0.37418]
[1727561107259,6.1278,2671.9,2671.8,0.37418]
[1727561108162,2.92,2671.9,2671.8,0.37418]
[1727561108549,0.7699,2672.1,2672.0,0.37415]
[1727561108550,0.3915,2672.1,2672.0,0.37415]
[1727561108750,0.348,2672.5,2671.9,2.92]
[1727561108751,3.2078,2672.5,2671.9,2.92]
[1727561109055,6.50189,2672.5,2672.3,0.3741]
[1727561109455,6.50189,2672.5,2672.4,0.3741]
[1727561109663,6.1278,2672.5,2672.4,0.3741]
[1727561110457,8.64936114,2673.0,2672.4,3.97049538]
[1727561110458,8.08361127,2672.9,2672.4,3.97049538]
[1727561110665,9.23325127,2672.9,2672.7,0.37405]
[1727561110867,0.37404,2672.8,2672.6,0.37406]
[1727561111558,8.46091127,2672.9,2672.5,1.1226]
[1727561111763,3.2078,2672.9,2672.7,4.0516279]
[1727561111964,3.2078,2672.9,2672.8,0.37404]
[1727561112361,2.92,2673.1,2673.0,0.37401]
[1727561112557,3.2078,2673.2,2673.1,0.374]
[1727561112869,3.2078,2673.2,2673.1,4.57898647]
[1727561115457,3.2078,2673.2,2673.1,4.20498647]
[1727561115860,3.2078,2673.2,2673.1,4.57898647]
[1727561116167,3.2078,2673.2,2673.1,4.20498647]
[1727561116361,3.2078,2673.2,2673.1,4.57898647]
[1727561120760,3.2078,2673.2,2673.1,4.20498647]
[1727561120956,3.2078,2673.2,2673.1,4.57898647]
[1727561123968,3.2078,2673.2,2672.6,0.93515]
[1727561123969,0.37401,2673.1,2672.8,0.37404]
[1727561124170,0.3707,2673.0,2672.9,0.37403]
[1727561125163,0.3788,2673.1,2673.0,0.37401]
[1727561125369,0.7495,2673.1,2673.0,0.37401]
[1727561127077,0.7495,2673.1,2672.9,4.3187366]
[1727561127572,3.6695,2673.1,2672.9,4.3187366]
[1727561127874,3.6695,2673.1,2673.0,0.37401]
[1727561128267,3.6695,2673.1,2672.9,3.9447166]
[1727561128467,3.6695,2673.1,2672.9,4.3187366]
[1727561128663,4.0435,2673.1,2672.9,4.3187366]
[1727561128871,3.6695,2673.1,2673.0,0.37401]
[1727561129078,4.0435,2673.1,2672.9,4.3187366]
[1727561130476,3.6695,2673.1,2673.0,0.37401]
[1727561130777,4.0435,2673.1,2673.0,0.37401]
[1727561131076,3.6695,2673.1,2673.0,0.37401]
[1727561132080,0.7495,2673.1,2673.0,0.37401]
[1727561133683,0.3788,2673.1,2673.0,0.37401]
[1727561137081,0.3788,2673.1,2673.0,4.54663485]
[1727561137781,3.2078,2673.2,2673.1,0.374]
[1727561138086,3.2078,2673.2,2673.1,0.78]
[1727561140381,3.58178,2673.2,2673.1,0.78]
[1727561144385,0.37398,2673.2,2673.1,0.78]
[1727561145276,6.4979,2673.3,2673.0,0.37401]
[1727561145582,0.37403,2673.0,2672.9,0.37403]
[1727561145780,0.37403,2673.0,2672.7,0.4076]
[1727561145781,0.37403,2672.9,2672.8,0.37403]
[1727561145982,0.74583,2672.9,2672.8,0.37403]
[1727561146285,1.14393,2672.9,2672.8,0.37403]
[1727561147082,0.37405,2672.8,2672.6,0.37406]
[1727561147480,0.37405,2672.8,2672.6,0.37407]
[1727561147481,0.37404,2672.8,2672.6,0.37407]
[1727561150391,0.37404,2672.8,2672.5,0.4076]
[1727561150392,0.37406,2672.7,2672.5,0.4076]
[1727561150606,0.37407,2672.6,2672.4,1.17379]
[1727561151113,0.3911,2672.5,2672.4,1.17379]
[1727561152208,0.76518,2672.5,2672.3,0.3741]
[1727561152515,0.76518,2672.5,2672.3,4.4987692]
[1727561153015,0.3911,2672.5,2672.4,0.3741]
[1727561153314,0.3911,2672.5,2672.3,4.1246692]
[1727561153611,0.3911,2672.5,2672.4,0.3741]
[1727561154216,5.57251127,2672.7,2672.5,0.37407]
[1727561154401,5.57251127,2672.7,2672.3,4.1246692]
[1727561154402,2.72879127,2672.6,2672.4,0.3828]
[1727561154610,0.3949,2672.5,2672.4,0.3741]
[1727561155502,0.3949,2672.5,2672.3,4.1246692]
[1727561155704,2.35071127,2672.5,2672.1,0.75693]
[1727561155899,0.37411,2672.3,2672.1,0.75693]
[1727561156108,2.72480127,2672.5,2672.2,0.37412]
[1727561156911,2.72480127,2672.5,2672.3,0.37411]
[1727561157412,2.72480127,2672.5,2672.2,0.37412]
[1727561157413,0.3741,2672.4,2672.2,0.37412]
[1727561157611,2.72480127,2672.5,2672.3,0.37411]
[1727561158601,2.72480127,2672.5,2672.1,0.3828]
[1727561158602,2.35071127,2672.5,2672.4,0.3741]
[1727561159014,0.3949,2672.5,2672.4,0.3741]
[1727561160221,0.76898,2672.5,2672.3,0.3741]
[1727561160517,2.35471127,2672.6,2672.5,0.37408]
[1727561160714,0.3989,2672.6,2672.5,0.37408]
[1727561162310,3.2078,2672.7,2672.3,0.3725]
[1727561162513,3.2078,2672.7,2672.6,0.37407]
[1727561168606,2.73086127,2672.8,2672.6,0.37407]
[1727561168807,0.77504,2672.8,2672.6,0.37406]
[1727561169017,5.93865127,2672.8,2672.6,0.37406]
[1727561170311,1.35,2672.7,2672.6,0.37406]
[1727561171525,1.72405,2672.7,2672.5,1.13887]
[1727561171720,0.4041,2672.6,2672.5,0.37407]
[1727561172114,1.72406,2672.7,2672.5,0.37407]
[1727561172322,3.30581127,2672.7,2672.3,0.3725]
[1727561172522,3.67987127,2672.7,2672.5,0.37407]
[1727561172721,3.67987127,2672.7,2672.3,0.3725]
[1727561172722,3.67987127,2672.7,2672.6,0.37407]
[1727561172919,1.35,2672.7,2672.6,0.37407]
[1727561173923,3.67986127,2672.7,2672.6,0.37407]
[1727561174628,3.67986127,2672.7,2672.5,0.37407]
[1727561176526,3.67986127,2672.7,2672.6,0.37407]
[1727561176928,3.67987127,2672.7,2672.5,0.37407]
[1727561177526,3.67987127,2672.7,2672.6,0.37407]
[1727561177722,3.67987127,2672.7,2672.5,0.37407]
[1727561178227,3.30581127,2672.7,2672.5,0.37407]
[1727561178528,3.67987127,2672.7,2672.5,0.37407]
[1727561180329,3.67987127,2672.7,2672.4,3.98752359]
[1727561180621,3.67987127,2672.7,2672.5,0.37407]
[1727561181227,0.37408,2672.6,2672.4,4.36161359]
[1727561181526,0.37408,2672.6,2671.8,1.95741883]
[1727561181527,0.37411,2672.4,2671.8,4.18650941]
[1727561181827,2.1186,2672.3,2672.2,0.37412]
[1727561182416,2.1186,2672.3,2672.1,0.37413]
[1727561182644,2.49272,2672.3,2672.1,0.37413]
[1727561184028,2.49272,2672.3,2672.0,4.25316309]
[1727561184029,2.1186,2672.3,2672.0,4.25316309]
[1727561184221,2.1186,2672.3,2671.5,4.3657]
[1727561184222,3.31010177,2672.1,2671.5,4.3657]
[1727561184416,4.93197,2671.9,2671.6,0.3742]
[1727561184620,0.7838,2671.8,2671.6,0.3742]
[1727561185121,0.7838,2671.8,2671.7,0.37419]
[1727561185626,3.71790177,2672.0,2671.8,0.37418]
[1727561185826,0.4078,2672.0,2671.8,0.37417]
[1727561186027,0.78196,2672.0,2671.8,0.37417]
[1727561186325,0.4078,2672.0,2671.8,0.37417]
[1727561186821,0.4078,2672.0,2671.9,0.37417]
[1727561190631,3.31010177,2672.1,2672.0,0.37415]
[1727561190834,1.35,2672.1,2672.0,0.37415]
[1727561194434,1.35,2672.1,2672.0,0.76425]
[1727561199840,1.35,2672.1,2671.9,0.77256]
[1727561200033,1.72415,2672.0,2671.9,0.37416]
[1727561200234,2.13015,2672.0,2671.9,0.37416]
[1727561200428,2.13015,2672.0,2671.9,4.03746159]
[1727561200631,0.37417,2671.9,2671.8,0.37418]
[1727561200827,0.74817,2671.9,2671.7,0.8116]
[1727561201036,0.3896,2671.8,2671.7,1.18578]
[1727561201239,0.3896,2671.8,2671.7,0.77748]
[1727561201632,0.76378,2671.8,2671.7,0.4033]
[1727561201827,2.11378,2671.8,2671.6,0.3742]
[1727561202247,2.11378,2671.8,2671.7,3.90887282]
[1727561203033,2.11378,2671.8,2671.5,0.3703]
[1727561203034,0.37421,2671.7,2671.5,0.3703]
[1727561203438,1.35,2671.6,2671.5,0.74452]
[1727561203837,1.72421,2671.6,2671.3,0.3857]
[1727561204040,0.3726,2671.5,2671.3,0.3857]
[1727561204233,0.3726,2671.5,2671.4,4.49888146]
[1727561206543,0.3726,2671.5,2671.3,0.75994]
[1727561207141,0.3726,2671.5,2671.4,0.37424]
[1727561208239,1.7226,2671.5,2671.0,3.2078]
[1727561208439,1.35,2671.3,2671.2,0.37426]
[1727561208642,1.35,2671.3,2671.2,4.60340157]
[1727561208942,1.35,2671.3,2671.0,3.96789]
[1727561209147,1.35,2671.1,2671.0,3.96789]
[1727561209646,1.7452,2671.1,2671.0,3.96789]
[1727561211038,1.7452,2671.1,2671.0,0.76009]
[1727561211640,1.7452,2671.1,2670.9,7.91035359]
[1727561211851,1.7452,2671.1,2671.0,0.37429]
[1727561212039,1.7452,2671.1,2671.0,4.28814931]
[1727561212234,2.11948,2671.1,2671.0,3.91385931]
[1727561212434,1.7452,2671.1,2671.0,0.37429]
[1727561218149,2.11948,2671.1,2670.9,4.70255359]
[1727561218355,0.37431,2670.9,2670.7,0.37433]
[1727561218651,1.7284,2670.8,2670.7,0.37434]
[1727561218847,1.7284,2670.8,2670.5,3.2078]
[1727561219050,1.35,2670.6,2670.5,3.2078]
[1727561219445,1.35,2670.6,2670.5,3.58216]
[1727561220854,1.7491,2670.6,2670.5,3.58216]
[1727561224856,2.12345,2670.6,2670.4,0.75707]
[1727561225050,1.35,2670.5,2670.4,0.75707]
[1727561225444,1.35,2670.5,2670.4,0.37437]
[1727561226055,1.35,2670.5,2670.1,1.1708]
[1727561226260,1.35,2670.2,2670.1,1.16751]
[1727561226648,1.35,2670.2,2670.1,4.87482329]
[1727561227152,1.7465,2670.2,2670.1,4.87482329]
[1727561228353,1.7465,2670.2,2670.1,0.37441]
[1727561228549,0.37443,2670.1,2669.8,0.76585]
[1727561228754,1.35,2670.0,2669.8,0.37445]
[1727561228954,1.72444,2670.0,2669.8,0.37445]
[1727561229159,1.72444,2670.0,2669.7,0.37447]
[1727561229363,1.35,2669.8,2669.7,0.37447]
[1727561230059,1.7457,2669.8,2669.7,0.37447]
[1727561233062,1.7457,2669.8,2669.6,0.37448]
[1727561233565,1.7457,2669.8,2669.7,0.37448]
[1727561233760,1.7457,2669.8,2669.6,0.37448]
[1727561233955,1.7457,2669.8,2669.7,0.37448]
[1727561234860,0.3957,2669.8,2669.7,0.37448]
[1727561235062,1.7457,2669.8,2669.7,0.37448]
[1727561235562,1.7457,2669.8,2669.6,0.37449]
[1727561235763,1.35,2669.7,2669.6,0.37449]
[1727561239969,1.35,2669.7,2669.5,0.7659]
[1727561240475,1.35,2669.7,2669.5,0.3914]
[1727561240772,1.35,2669.7,2669.6,0.37449]
[1727561241276,1.35,2669.7,2669.5,0.7659]
[1727561241470,1.72448,2669.7,2669.5,0.7659]
[1727561241773,1.72448,2669.7,2669.5,0.3745]
[1727561242073,1.72448,2669.7,2669.2,3.2078]
[1727561242074,1.35,2669.7,2669.2,3.2078]
[1727561242273,1.35,2669.4,2669.2,0.37454]
[1727561242479,0.3951,2669.3,2669.1,0.3981]
[1727561242666,1.1629,2669.3,2669.2,0.37455]
[1727561242872,2.5129,2669.3,2669.2,0.37455]
[1727561243073,0.37455,2669.2,2668.5,4.14442]
[1727561243268,1.35,2668.8,2668.7,1.17662]
[1727561243576,1.35,2668.8,2668.7,5.21711762]
[1727561243874,1.35,2668.8,2668.7,1.17662]
[1727561244074,1.35,2668.8,2668.7,5.21711762]
[1727561244285,1.35,2668.8,2668.7,0.37462]
[1727561244678,1.35,2668.8,2668.6,0.37462]
[1727561244880,1.7595,2668.7,2668.6,0.37462]
[1727561245670,1.7595,2668.7,2668.5,4.29809986]
[1727561245874,1.7595,2668.7,2668.5,0.37464]
[1727561246381,2.13412,2668.7,2668.4,0.77275]
[1727561246575,1.35,2668.5,2668.4,0.77275]
[1727561248082,1.35,2668.5,2668.4,0.3981]
[1727561248284,1.35,2668.5,2668.4,0.77276]
[1727561249080,5.0972,2668.5,2668.1,3.2078]
[1727561249286,1.35,2668.2,2667.9,0.3736]
[1727561249483,1.35,2668.0,2667.9,0.3736]
[1727561249689,1.35,2668.0,2667.7,0.3865]